bitfinex-derivatives/quotes_ETHF0:USTF0_20250906
["timestamp","ask_amount","ask_price","bid_price","bid_amount"]
[1757184115036,0.5021,4273.8,4273.7,0.7163]
[1757184117737,0.706,4273.8,4273.7,0.7163]
[1757184119332,0.706,4273.8,4273.4,0.3045]
[1757184119537,0.706,4273.8,4273.5,0.235]
[1757184119737,0.706,4273.8,4273.6,0.235]
[1757184120132,0.706,4273.8,4273.6,0.5395]
[1757184120332,0.4082,4273.8,4273.6,0.5395]
[1757184120537,0.4082,4273.8,4273.7,0.2141]
[1757184121031,0.706,4273.8,4273.7,0.5186]
[1757184121236,0.706,4273.8,4273.7,0.7536]
[1757184121440,0.706,4273.8,4273.7,0.7163]
[1757184121637,0.706,4273.8,4273.7,0.9513]
[1757184135554,0.706,4273.8,4273.7,0.7163]
[1757184135743,0.706,4273.8,4273.7,0.9513]
[1757184136743,0.1248,4274.5,4273.7,0.9513]
[1757184137049,0.5021,4274.3,4274.2,0.7163]
[1757184137248,1.11929632,4274.3,4274.2,0.9513]
[1757184139050,1.32319632,4274.3,4274.2,0.9513]
[1757184141850,1.32319632,4274.3,4274.2,0.6468]
[1757184142853,1.32319632,4274.3,4274.2,0.4491]
[1757184144052,1.32319632,4274.3,4274.2,0.9553]
[1757184144452,1.32319632,4274.3,4274.2,0.6564]
[1757184144953,1.32319632,4274.3,4274.2,0.9553]
[1757184145251,1.32319632,4274.3,4274.2,0.4491]
[1757184147557,0.3149,4274.6,4274.5,0.524]
[1757184147743,3.2078,4274.9,4274.6,0.2989]
[1757184148055,0.7369,4275.0,4274.9,0.7058]
[1757184148254,1.47212406,4275.0,4274.9,0.7058]
[1757184148454,1.35322406,4275.0,4274.9,0.7058]
[1757184148655,0.7369,4275.0,4274.9,0.9408]
[1757184148855,0.3149,4275.4,4275.3,0.7058]
[1757184149057,0.3149,4275.4,4275.3,3.9136]
[1757184149560,0.3149,4275.9,4275.3,3.6147]
[1757184149755,0.61564957,4275.8,4275.4,0.2989]
[1757184150057,0.2124,4275.8,4275.7,0.7058]
[1757184150256,0.82767303,4275.8,4275.7,0.7058]
[1757184150456,1.14257303,4275.8,4275.7,0.7058]
[1757184150657,1.35217303,4275.8,4275.7,0.7058]
[1757184151260,0.7369,4275.8,4275.7,0.7058]
[1757184153951,0.3149,4275.7,4275.3,0.2989]
[1757184154157,0.7369,4275.3,4275.2,0.236]
[1757184154358,0.7369,4275.3,4275.2,0.4356]
[1757184154861,0.7369,4275.3,4275.2,0.7345]
[1757184155062,0.1189,4275.5,4275.4,0.4069]
[1757184155063,0.3149,4275.5,4275.4,0.4069]
[1757184155263,0.3149,4275.5,4275.4,0.7058]
[1757184155764,0.5273,4275.5,4275.4,0.7058]
[1757184157161,3.2078,4276.5,4275.5,0.1171]
[1757184157469,0.422,4276.4,4276.3,0.1996]
[1757184157765,0.7369,4276.4,4276.2,0.237]
[1757184158265,0.7369,4276.4,4276.3,0.1996]
[1757184158463,0.7369,4276.4,4276.3,0.7058]
[1757184158658,0.3149,4277.3,4276.5,0.1171]
[1757184158859,0.5273,4277.3,4277.2,0.7058]
[1757184159060,0.7369,4277.3,4277.2,0.9438]
[1757184161453,0.7369,4277.3,4277.2,0.1996]
[1757184162561,0.00433077,4277.4,4277.3,0.2989]
[1757184162760,0.42633077,4277.4,4277.3,0.238]
[1757184163066,0.42633077,4277.4,4277.3,0.4376]
[1757184163267,0.74123077,4277.4,4277.3,0.4376]
[1757184163465,0.74123077,4277.4,4277.3,0.7365]
[1757184166067,0.74123077,4277.4,4277.3,0.1996]
[1757184166262,0.74123077,4277.4,4277.3,0.238]
[1757184166460,0.74123077,4277.4,4277.3,0.4376]
[1757184166662,0.74123077,4277.4,4277.3,0.1996]
[1757184166868,0.74123077,4277.4,4277.3,0.4376]
[1757184167569,0.74123077,4277.4,4277.3,0.238]
[1757184168266,0.74123077,4277.4,4277.3,0.4376]
[1757184177269,0.74123077,4277.4,4277.3,0.4366]
[1757184177976,0.74123077,4277.4,4277.3,0.237]
[1757184178278,0.7084,4276.8,4276.7,3.4058]
[1757184178575,0.7084,4276.8,4276.7,3.4448]
[1757184181882,0.7084,4276.8,4276.7,3.6428]
[1757184182884,0.7084,4276.8,4276.7,3.949]
[1757184185089,0.7084,4276.8,4276.7,4.1612]
[1757184186087,1.32290701,4276.8,4276.7,4.1612]
[1757184186283,0.5229,4276.5,4276.4,0.198]
[1757184186593,0.8261,4276.5,4276.4,0.237]
[1757184186889,1.4406424,4276.5,4276.4,0.435]
[1757184187288,1.4406424,4276.5,4276.4,0.7412]
[1757184188988,1.4406424,4276.5,4276.4,0.9534]
[1757184189292,1.4406424,4276.5,4276.4,0.237]
[1757184189590,1.4406424,4276.5,4276.1,0.3062]
[1757184189591,1.4406424,4276.5,4276.3,0.237]
[1757184189788,1.3229424,4276.4,4276.3,0.237]
[1757184189993,0.7084,4276.1,4276.0,3.2078]
[1757184190184,1.3229424,4276.1,4276.0,3.4448]
[1757184190495,1.3229424,4276.1,4276.0,3.2078]
[1757184191192,0.7084,4276.1,4276.0,3.2078]
[1757184191387,0.7084,4276.1,4276.0,3.4058]
[1757184191598,1.32299583,4276.1,4276.0,3.4058]
[1757184192198,0.7084,4276.1,4276.0,3.4058]
[1757184193093,1.32284908,4276.1,4276.0,0.198]
[1757184194797,0.1177,4276.0,4275.4,3.2078]
[1757184195002,0.7084,4275.6,4275.5,0.6472]
[1757184195496,0.7084,4275.6,4275.5,0.9534]
[1757184197295,0.3032,4275.6,4275.5,1.0818]
[1757184197896,0.5033,4275.6,4275.5,1.0818]
[1757184202206,0.5033,4275.6,4275.5,0.9534]
[1757184212412,0.5033,4275.6,4275.5,1.0707]
[1757184212711,0.8452,4276.0,4275.9,0.7079]
[1757184213010,1.46048276,4276.0,4275.9,0.7079]
[1757184218620,1.46048276,4276.0,4275.7,0.237]
[1757184218919,0.61528276,4275.9,4275.7,0.237]
[1757184219108,0.4085,4275.8,4275.0,0.1171]
[1757184219317,3.82308276,4275.9,4274.9,3.2078]
[1757184219318,0.1258,4275.0,4274.9,3.2078]
[1757184219514,0.5343,4275.0,4274.9,3.2078]
[1757184219715,1.46986523,4275.0,4274.9,3.2078]
[1757184220123,1.46986523,4275.0,4274.9,3.4045]
[1757184220417,1.46986523,4275.0,4274.9,3.72]
[1757184221719,1.46986523,4275.0,4274.9,3.9157]
[1757184222717,1.34406523,4275.0,4274.9,3.9157]
[1757184223213,0.7275,4275.0,4274.9,3.9157]
[1757184223514,0.5182,4275.0,4274.9,3.9157]
[1757184223721,0.319,4275.0,4274.9,3.9157]
[1757184225216,0.1258,4275.5,4274.9,3.9157]
[1757184225421,1.13386142,4275.4,4275.3,0.3924]
[1757184225623,1.13386142,4275.4,4275.3,0.7079]
[1757184225822,1.34316142,4275.4,4275.3,0.7079]
[1757184236431,1.34282963,4275.4,4275.3,0.7079]
[1757184243532,0.3148,4276.0,4275.4,0.3199]
[1757184243724,3.9164,4276.4,4276.3,0.42]
[1757184244034,0.1176,4275.5,4275.4,3.6717]
[1757184244236,0.8262,4275.5,4275.4,4.0917]
[1757184244439,0.7086,4275.5,4275.4,4.0917]
[1757184245434,0.8262,4275.5,4274.9,0.0035098]
[1757184245639,0.8262,4275.0,4274.9,0.2131098]
[1757184245839,0.8262,4275.0,4274.9,0.7434098]
[1757184246140,0.5138,4275.0,4274.9,0.7434098]
[1757184246437,0.5138,4275.3,4275.2,0.7399]
[1757184246636,1.12965297,4275.3,4275.2,0.7399]
[1757184249945,1.32445297,4275.3,4275.2,0.7399]
[1757184252641,0.8262,4275.0,4274.9,0.0035098]
[1757184252842,1.44205297,4275.0,4274.9,0.0035098]
[1757184254343,5.44205297,4275.0,4274.9,0.0035098]
[1757184254838,0.199,4274.2,4274.1,0.4466]
[1757184255147,0.7086,4274.2,4274.1,0.7665]
[1757184256438,0.7086,4274.2,4274.1,0.5295]
[1757184256645,0.7086,4274.2,4274.1,0.2096]
[1757184256850,0.7086,4274.2,4274.1,0.5295]
[1757184260560,0.1203,4274.0,4273.9,0.237]
[1757184260862,0.84,4274.0,4273.9,0.237]
[1757184261855,0.84,4274.0,4273.9,0.4305]
[1757184262261,0.84,4274.0,4273.9,0.4986]
[1757184263563,0.84,4274.0,4273.9,0.7042]
[1757184263862,0.84,4274.0,4273.9,0.3991]
[1757184264267,0.7197,4273.4,4273.3,0.4986]
[1757184264764,0.7197,4273.4,4273.3,0.7042]
[1757184265357,3.5208,4274.1,4274.0,0.3991]
[1757184265562,3.2078,4274.1,4274.0,0.8307]
[1757184266257,3.5208,4274.1,4274.0,0.8307]
[1757184266456,3.7324,4274.1,4274.0,0.8307]
[1757184267863,3.7324,4274.1,4274.0,0.7042]
[1757184271471,3.9275,4274.1,4274.0,0.7042]
[1757184272665,3.9275,4274.1,4273.9,0.237]
[1757184272871,0.527,4274.0,4273.9,0.4305]
[1757184273170,0.84,4274.0,4273.9,0.7356]
[1757184273470,0.7197,4274.0,4273.9,0.9412]
[1757184273873,0.5243,4274.5,4274.4,0.7042]
[1757184274367,0.8373,4274.5,4274.4,0.7042]
[1757184275562,0.7197,4274.5,4274.4,0.7042]
[1757184276672,0.313,4274.5,4274.4,0.7042]
[1757184277673,0.5246,4274.5,4274.4,0.7042]
[1757184278571,0.5246,4274.5,4274.4,0.9412]
[1757184280075,0.7197,4274.5,4274.4,0.9412]
[1757184280277,1.33884083,4274.5,4274.4,0.9412]
[1757184280477,0.7197,4274.5,4274.4,0.9412]
[1757184281169,1.33899339,4274.5,4274.4,0.9412]
[1757184284574,0.313,4274.4,4274.2,3.2078]
[1757184284772,1.02615969,4274.3,4273.7,3.2078]
[1757184284976,0.7197,4273.9,4273.8,0.4295]
[1757184287178,0.7197,4273.9,4273.8,0.1935]
[1757184287380,0.313,4273.8,4273.7,3.2078]
[1757184287675,0.7197,4273.8,4273.7,3.2078]
[1757184287880,1.33961987,4273.8,4273.7,3.2078]
[1757184289281,0.7197,4273.8,4273.7,3.2078]
[1757184290279,0.7197,4273.8,4273.7,3.7354]
[1757184290579,0.7197,4273.8,4273.7,3.4161]
[1757184292681,0.7197,4273.8,4273.7,3.7354]
[1757184293584,0.7197,4273.8,4273.7,3.9371]
[1757184296385,0.1203,4274.5,4273.7,4.1731]
[1757184296586,1.34960828,4274.4,4274.3,0.2083]
[1757184296988,1.03070828,4274.4,4273.8,0.3193]
[1757184297284,0.7297,4273.9,4273.8,0.7293]
[1757184297485,1.34960828,4273.9,4273.8,0.7293]
[1757184299693,1.34960828,4273.9,4273.8,0.236]
[1757184300395,1.03070828,4273.9,4273.7,3.2078]
[1757184300591,0.7297,4273.8,4273.7,4.1731]
[1757184300786,0.5204,4273.8,4273.7,4.1731]
[1757184301393,0.7297,4273.8,4273.7,3.4438]
[1757184301793,0.7297,4273.8,4273.7,3.6521]
[1757184301990,0.7297,4273.8,4273.7,4.1731]
[1757184302791,0.7297,4273.8,4273.7,0.9653]
[1757184303895,0.5204,4273.8,4273.7,0.9653]
[1757184306192,0.7297,4273.8,4273.7,0.9653]
[1757184309096,0.1203,4274.5,4273.7,0.9653]
[1757184309397,1.34989797,4274.4,4274.3,0.2083]
[1757184309699,1.34989797,4274.4,4273.8,0.3193]
[1757184309900,1.34989797,4274.3,4274.2,0.2083]
[1757184310602,1.34989797,4274.3,4274.2,0.7293]
[1757184312497,1.34989797,4274.3,4274.2,0.41]
[1757184314097,1.34989797,4274.3,4274.2,0.7293]
[1757184314600,1.34989797,4274.3,4274.2,0.41]
[1757184315597,1.34989797,4274.3,4274.2,0.2083]
[1757184317406,0.62019797,4274.3,4274.2,0.7293]
[1757184317605,0.62019797,4274.3,4274.2,0.41]
[1757184317898,0.3189,4274.5,4274.2,0.41]
[1757184317899,0.62019797,4274.4,4274.2,0.41]
[1757184318098,1.14059797,4274.3,4274.2,0.41]
[1757184318293,1.14059797,4274.3,4274.2,0.7293]
[1757184318701,1.34989797,4274.3,4274.2,0.7293]
[1757184320098,0.4127,4273.8,4273.7,3.2078]
[1757184320305,0.3206,4273.7,4273.6,0.2056]
[1757184320506,1.35452492,4273.7,4273.6,0.2056]
[1757184320705,1.35452492,4273.7,4273.6,0.4976]
[1757184323202,1.35452492,4273.7,4273.6,0.2056]
[1757184323508,0.8585,4273.5,4273.4,0.4976]
[1757184323701,0.8585,4273.5,4273.4,0.6935]
[1757184324207,0.7333,4273.5,4273.4,0.6935]
[1757184327811,0.5196,4273.9,4273.8,0.6935]
[1757184328108,1.14068959,4273.9,4273.8,0.6935]
[1757184328606,1.35438959,4273.9,4273.8,0.6935]
[1757184331010,0.7333,4273.7,4273.6,0.4976]
[1757184331210,1.35438959,4273.7,4273.6,0.2056]
[1757184334113,0.7333,4273.7,4273.6,0.2056]
[1757184334312,1.35437693,4273.7,4273.6,0.2056]
[1757184334905,0.4127,4273.3,4273.0,0.292]
[1757184335105,0.3206,4273.2,4272.7,3.4438]
[1757184335307,3.333,4273.5,4272.7,3.4438]
[1757184335308,0.7333,4272.8,4272.7,3.9414]
[1757184335606,0.7333,4272.8,4272.7,4.1373]
[1757184336904,0.5196,4272.8,4272.7,4.1373]
[1757184337109,0.3206,4272.8,4272.7,4.1373]
[1757184339907,0.5196,4272.8,4272.7,4.1373]
[1757184340102,0.7333,4272.8,4272.7,3.9013]
[1757184340306,0.5196,4272.8,4272.7,4.1373]
[1757184341013,0.117,4273.1,4272.7,4.1373]
[1757184341212,0.117,4273.1,4272.8,0.292]
[1757184341411,0.5196,4273.0,4272.9,0.6935]
[1757184342318,0.8585,4273.0,4272.9,0.6935]
[1757184342806,0.8585,4273.0,4272.9,0.9295]
[1757184343417,0.8585,4273.0,4272.9,0.6935]
[1757184343615,0.8585,4273.0,4272.9,0.9295]
[1757184344216,0.7333,4273.0,4272.9,0.9295]
[1757184344414,0.8585,4273.0,4272.9,0.9295]
[1757184346020,0.7333,4273.0,4272.9,0.9295]
[1757184347917,0.8585,4273.0,4272.9,0.9295]
[1757184350114,0.7333,4273.0,4272.9,0.9295]
[1757184351418,0.7333,4273.0,4272.9,0.6935]
[1757184351717,0.8579,4273.0,4272.9,0.9295]
[1757184351914,0.8409,4273.0,4272.9,0.4299]
[1757184352120,0.8409,4273.0,4272.9,0.7285]
[1757184352418,0.3036,4272.9,4272.7,3.2078]
[1757184352623,0.7065,4272.9,4272.8,0.236]
[1757184353214,0.1246,4273.0,4272.8,0.236]
[1757184353215,0.0035098,4273.2,4272.8,0.645]
[1757184353421,0.4064098,4273.2,4273.1,0.7076]
[1757184353613,0.0035098,4273.2,4273.1,0.7076]
[1757184353818,3.2078,4275.2,4273.9,0.409]
[1757184354020,3.2078,4276.9,4275.0,3.2078]
[1757184354325,0.1246,4277.5,4276.3,3.2078]
[1757184354620,3.2078,4277.7,4277.1,3.2078]
[1757184354817,0.1246,4277.5,4277.1,3.2078]
[1757184355022,0.1246,4276.0,4275.9,3.2078]
[1757184355227,0.4282,4276.0,4275.9,3.2078]
[1757184355422,0.6324,4276.0,4275.9,0.238]
[1757184355626,0.4282,4276.0,4275.9,0.238]
[1757184355923,0.4282,4276.0,4275.9,3.4458]
[1757184356219,0.4282,4276.0,4275.9,0.238]
[1757184356429,0.6324,4276.0,4275.9,0.238]
[1757184356826,0.8311,4276.0,4275.9,0.238]
[1757184367535,0.5275,4275.5,4275.4,3.2078]
[1757184367839,0.8311,4275.5,4275.4,3.4448]
[1757184368540,0.8311,4275.5,4274.9,3.2078]
[1757184368728,0.5078,4275.4,4275.0,0.237]
[1757184369334,0.5078,4275.4,4274.9,3.2078]
[1757184369530,0.4282,4275.0,4274.9,3.2078]
[1757184369725,0.8311,4275.0,4274.9,3.2078]
[1757184376039,0.5275,4275.0,4274.7,33.943]
[1757184376233,0.2042,4274.8,4274.7,33.943]
[1757184376433,0.5078,4274.8,4274.7,33.943]
[1757184384147,0.3036,4274.8,4274.7,33.943]
[1757184384349,0.3111,4275.7,4274.7,41.67647651]
[1757184384642,0.1963,4275.9,4275.5,3.2078]
[1757184384843,0.1963,4275.8,4275.6,0.52874651]
[1757184385034,0.7203,4275.8,4275.7,0.29174651]
[1757184385946,3.2078,4276.2,4275.7,0.29174651]
[1757184386145,0.3192,4276.0,4275.8,0.52874651]
[1757184386340,0.3111,4275.9,4275.8,0.237]
[1757184386538,0.3111,4275.9,4275.8,0.52871445]
[1757184387246,0.1963,4276.4,4275.8,0.52871445]
[1757184387544,0.434,4277.0,4276.0,3.2078]
[1757184387739,0.1229,4277.0,4276.5,3.2078]
[1757184387940,0.3111,4276.9,4276.6,0.52871445]
[1757184388144,0.1229,4277.0,4276.7,0.29171445]
[1757184388444,0.3111,4276.9,4276.8,0.52871445]
[1757184388841,0.00433077,4277.4,4276.8,4.52871445]
[1757184389147,0.5321,4277.0,4276.9,0.52871445]
[1757184389445,0.5321,4277.0,4276.5,3.2078]
[1757184389646,0.3111,4276.9,4276.6,0.237]
[1757184389840,0.3111,4276.6,4275.9,3.2078]
[1757184390146,0.3111,4276.4,4276.0,0.237]
[1757184390344,0.1229,4276.5,4276.0,0.237]
[1757184390540,0.3192,4276.5,4276.0,0.237]
[1757184390946,0.3111,4276.4,4276.0,0.237]
[1757184391158,0.3111,4276.4,4275.9,3.2078]
[1757184391344,0.3192,4276.5,4276.0,0.237]
[1757184391547,0.1229,4276.5,4275.9,3.2078]
[1757184391849,0.3111,4276.1,4276.0,0.237]
[1757184392254,0.5074,4276.1,4276.0,0.237]
[1757184392756,0.3111,4276.1,4276.0,0.237]
[1757184393347,0.1229,4276.5,4276.0,0.237]
[1757184393348,0.3111,4276.4,4276.0,0.237]
[1757184393549,0.3111,4276.8,4276.1,0.23384999]
[1757184393856,0.3111,4276.8,4276.4,3.2078]
[1757184394056,0.3192,4277.0,4276.5,0.237]
[1757184394255,0.5074,4276.9,4276.5,0.237]
[1757184394456,0.1229,4277.0,4276.5,0.237]
[1757184394656,0.3111,4277.3,4276.9,3.2078]
[1757184394856,0.5074,4277.2,4277.0,0.237]
[1757184395359,0.1963,4277.2,4277.0,0.237]
[1757184395556,0.3111,4277.1,4277.0,0.237]
[1757184395854,0.00433077,4277.4,4277.0,0.237]
[1757184396160,0.5074,4277.3,4277.0,0.237]
[1757184396866,0.6303,4277.0,4276.9,3.2078]
[1757184397049,0.6303,4277.0,4276.9,3.4448]
[1757184398158,0.6303,4277.0,4276.9,3.2078]
[1757184398159,0.8432,4277.0,4276.9,3.2078]
[1757184398356,0.8432,4276.5,4276.4,3.2078]
[1757184398551,0.1229,4276.0,4275.6,3.2078]
[1757184398867,0.7203,4275.7,4275.6,3.6286]
[1757184399058,0.5074,4275.7,4275.6,3.9276]
[1757184400858,0.7203,4275.7,4275.6,3.2078]
[1757184401967,0.7203,4275.7,4275.6,3.4202]
[1757184404969,0.7203,4275.7,4275.6,3.9276]
[1757184405471,0.7203,4275.7,4275.6,3.6286]
[1757184405671,0.7203,4275.7,4275.6,3.9276]
[1757184405871,0.434,4276.0,4275.7,0.299]
[1757184406061,0.3192,4276.0,4275.9,0.4208]
[1757184406260,0.6303,4276.0,4275.9,0.4208]
[1757184407569,0.8432,4276.0,4275.9,0.4208]
[1757184408263,0.8432,4276.0,4275.9,0.2124]
[1757184408467,1.56971414,4277.7,4277.1,0.299]
[1757184408655,0.1229,4278.5,4277.0,0.1072]
[1757184408656,3.8381,4278.5,4278.4,0.4208]
[1757184408964,4.051,4278.5,4278.4,0.6128]
[1757184409368,4.051,4278.5,4278.4,0.9047]
[1757184409369,0.3111,4278.5,4278.4,0.9047]
[1757184410364,0.2975,4278.7,4278.5,0.2919]
[1757184410564,0.2975,4279.4,4278.6,0.3934]
[1757184410867,0.2975,4279.4,4278.8,3.8931]
[1757184413669,0.4675,4278.9,4278.8,3.8931]
[1757184414569,0.6637,4278.9,4278.8,3.8931]
[1757184415770,0.6637,4278.9,4278.8,4.1301]
[1757184416874,0.4675,4278.9,4278.8,4.1301]
[1757184417480,0.6637,4278.9,4278.8,4.1301]
[1757184417667,0.4675,4278.9,4278.8,4.1301]
[1757184419677,0.4675,4278.9,4278.8,3.8931]
[1757184419878,0.6637,4278.9,4278.8,4.1301]
[1757184420777,0.4675,4278.9,4278.8,4.1301]
[1757184421576,0.8619,4278.9,4278.8,3.8382]
[1757184423584,0.8619,4278.9,4278.8,4.1301]
[1757184424176,0.8619,4278.9,4278.8,3.8382]
[1757184424778,0.8619,4278.9,4278.8,4.1301]
[1757184426578,0.4675,4278.9,4278.8,4.1301]
[1757184426974,0.17,4278.9,4278.8,4.1301]
[1757184429883,0.2975,4279.9,4278.8,3.8382]
[1757184430186,0.6919,4279.9,4279.8,0.1973]
[1757184430483,0.6919,4279.9,4279.8,0.4343]
[1757184430884,0.6919,4279.9,4279.8,0.6304]
[1757184431788,0.4937,4279.9,4279.8,0.9223]
[1757184431981,0.2975,4279.9,4279.8,0.9223]
[1757184432173,0.1207,4281.5,4280.2,0.3934]
[1757184432174,3.2078,4280.8,4280.2,0.3934]
[1757184432379,0.5151,4281.0,4280.6,3.2078]
[1757184432573,3.6022,4280.8,4279.8,3.4997]
[1757184432777,0.5151,4280.0,4279.9,0.4353]
[1757184432984,0.8126,4280.0,4279.9,0.1973]
[1757184433186,0.8126,4280.0,4279.9,0.4353]
[1757184434183,0.6144,4280.5,4280.4,0.6853]
[1757184434392,0.6144,4280.5,4280.4,0.9233]
[1757184434889,0.8126,4280.5,4280.4,0.6314]
[1757184437092,0.2975,4280.5,4280.4,0.9233]
[1757184437291,0.4937,4280.5,4280.4,0.9233]
[1757184437991,0.6144,4280.5,4280.4,0.9233]
[1757184439186,1.1950115,4280.5,4280.4,0.9233]
[1757184439378,1.4084115,4280.5,4280.4,0.9233]
[1757184439578,1.1109115,4280.5,4280.4,0.238]
[1757184439783,5.1109115,4280.5,4280.1,0.238]
[1757184439984,0.4151,4280.2,4280.1,0.238]
[1757184440292,1.2907115,4280.2,4280.1,0.238]
[1757184440491,1.2907115,4280.2,4280.1,0.4393]
[1757184441193,1.2907115,4280.2,4280.1,0.238]
[1757184443488,1.2907115,4280.2,4280.1,0.4393]
[1757184444987,1.2907115,4280.2,4280.1,0.9375]
[1757184445188,0.7101,4280.2,4280.1,0.9375]
[1757184446191,0.1207,4280.5,4280.1,0.9375]
[1757184446393,0.87583632,4280.4,4280.3,0.6995]
[1757184446689,1.29093632,4280.4,4280.3,0.6465]
[1757184447592,1.29093632,4280.4,4280.3,0.238]
[1757184447790,1.29093632,4280.4,4279.8,3.2078]
[1757184447990,0.8359,4280.0,4279.9,0.238]
[1757184448287,1.41677843,4280.0,4279.9,0.6465]
[1757184448894,0.8359,4280.0,4279.9,0.9375]
[1757184449287,0.8359,4280.0,4279.9,0.6465]
[1757184451193,0.295,4279.9,4279.8,3.2078]
[1757184451390,0.7101,4279.9,4279.8,3.4458]
[1757184453600,0.7101,4279.9,4279.8,3.6471]
[1757184457189,1.29178992,4279.9,4279.8,3.6471]
[1757184459503,1.29178992,4279.9,4279.8,3.6461]
[1757184459695,1.29178992,4279.9,4279.8,3.4091]
[1757184459899,1.29178992,4279.9,4279.8,3.6461]
[1757184460598,1.29178992,4279.9,4279.8,3.8533]
[1757184463702,1.29178992,4279.9,4279.8,4.1443]
[1757184465108,1.29225951,4279.9,4279.8,4.1443]
[1757184466102,1.29225951,4279.9,4279.8,3.8533]
[1757184466603,0.58215951,4279.9,4279.8,4.1443]
[1757184467706,0.295,4280.4,4280.1,0.4085]
[1757184467904,0.58178473,4280.3,4280.2,0.6455]
[1757184468306,0.58178473,4280.3,4280.2,0.9365]
[1757184469001,0.295,4280.4,4280.3,0.3076]
[1757184469204,0.295,4280.4,4280.3,0.7031]
[1757184470307,0.7029,4280.4,4280.3,0.3955]
[1757184470504,0.7029,4280.4,4280.3,0.2002]
[1757184472706,0.7029,4280.4,4280.3,0.3955]
[1757184473106,0.7029,4280.4,4280.3,0.7031]
[1757184473310,0.7029,4280.4,4280.3,0.6325]
[1757184473813,0.7029,4280.4,4280.3,0.3955]
[1757184474009,0.7029,4280.4,4280.3,0.237]
[1757184474313,0.7029,4280.4,4280.3,0.4372]
[1757184474808,0.7029,4280.4,4279.9,0.3076]
[1757184475113,0.8251,4280.0,4279.9,0.3955]
[1757184475312,0.8251,4280.0,4279.9,0.6325]
[1757184476113,0.2956,4280.0,4279.9,0.9401]
[1757184477013,0.6202,4280.0,4279.9,0.9401]
[1757184477321,0.6202,4280.0,4279.9,0.7031]
[1757184477615,0.8251,4280.0,4279.9,0.237]
[1757184477811,0.7035,4279.4,4279.3,3.2078]
[1757184478110,0.7035,4279.4,4279.3,3.4448]
[1757184478814,0.7035,4279.4,4279.3,3.645]
[1757184480610,0.3246,4280.0,4279.9,0.3955]
[1757184480809,0.5295,4280.0,4279.9,0.3955]
[1757184481321,1.40668528,4280.0,4279.9,0.3955]
[1757184481811,1.11108528,4280.0,4279.3,3.5154]
[1757184482016,0.7035,4279.4,4279.3,3.408]
[1757184482212,0.7035,4279.4,4279.3,3.645]
[1757184482412,0.7035,4279.4,4279.3,3.8403]
[1757184482714,0.4986,4279.9,4279.8,0.7031]
[1757184482920,0.3246,4280.5,4280.4,0.3955]
[1757184483113,0.8251,4280.5,4280.4,0.3955]
[1757184483311,1.40652191,4280.5,4280.4,0.3955]
[1757184483616,1.40652191,4280.5,4280.4,0.7031]
[1757184485618,0.4163,4281.0,4280.5,0.3076]
[1757184485819,0.58135354,4280.9,4280.8,0.7031]
[1757184486017,0.87695354,4280.9,4280.8,0.7031]
[1757184486212,0.2956,4280.9,4280.8,0.7031]
[1757184487119,0.2956,4281.4,4281.3,0.3955]
[1757184487320,0.87658434,4281.4,4281.3,0.9401]
[1757184487515,1.07958434,4281.4,4281.3,0.9401]
[1757184488118,1.07958434,4281.4,4281.3,0.7031]
[1757184488320,1.28448434,4281.4,4281.3,0.9401]
[1757184488522,1.28448434,4281.4,4281.3,0.6325]
[1757184489318,1.28448434,4281.4,4281.3,0.3955]
[1757184489515,1.28448434,4281.4,4281.3,0.6325]
[1757184489721,0.1216,4281.0,4280.9,0.2002]
[1757184489924,0.8251,4281.0,4280.9,0.2002]
[1757184490124,0.8251,4281.0,4280.9,0.4372]
[1757184490319,0.8251,4281.0,4280.9,0.237]
[1757184490723,0.8251,4281.0,4280.8,3.2078]
[1757184490724,0.2956,4280.9,4280.8,3.2078]
[1757184490917,0.7035,4280.9,4280.8,3.4448]
[1757184491628,0.7035,4280.9,4280.8,3.8403]
[1757184492523,0.4986,4280.9,4280.8,4.1479]
[1757184492729,0.2956,4280.9,4280.8,4.1479]
[1757184493319,3.2078,4281.4,4280.8,3.8403]
[1757184493525,1.28405892,4281.3,4281.2,0.2002]
[1757184494524,1.28405892,4281.3,4281.2,0.3955]
[1757184494827,0.4986,4281.3,4281.2,0.7031]
[1757184499840,0.7115,4281.3,4281.2,0.6325]
[1757184501236,0.7115,4281.3,4281.2,0.9485]
[1757184502138,0.7115,4281.3,4281.2,0.6325]
[1757184503538,0.7115,4281.3,4281.2,0.3955]
[1757184503933,0.7115,4281.3,4281.2,0.6325]
[1757184504945,0.7115,4281.3,4281.2,0.9485]
[1757184505441,0.4986,4281.3,4281.2,0.9485]
[1757184505636,0.2971,4281.5,4281.4,0.4123]
[1757184505843,0.2971,4281.5,4281.4,0.7283]
[1757184506043,0.5109,4281.5,4281.4,0.7283]
[1757184506542,0.6316,4281.5,4281.4,0.7283]
[1757184506941,0.6316,4281.5,4281.4,0.9653]
[1757184509136,0.5109,4281.5,4281.4,0.9653]
[1757184510937,0.8445,4281.5,4281.4,0.9653]
[1757184511144,0.8445,4281.5,4281.4,0.4123]
[1757184511443,0.8445,4281.5,4281.4,0.6493]
[1757184512838,0.8445,4281.5,4281.4,0.4123]
[1757184513045,0.8445,4281.5,4281.4,0.4368]
[1757184515139,1.42481342,4281.5,4281.4,0.237]
[1757184515336,0.1207,4281.0,4280.8,3.2078]
[1757184515542,0.7238,4280.9,4280.8,3.2078]